bitfinex/quotes_BTCUSD_20250908
["timestamp","ask_amount","ask_price","bid_price","bid_amount"]
[1757333026483,0.82942113,112120.0,112110.0,0.79554599]
[1757333026714,0.82942113,112120.0,112110.0,0.79654599]
[1757333026926,0.82942113,112120.0,112110.0,0.53334599]
[1757333031838,0.82942113,112120.0,112110.0,0.93334599]
[1757333033401,1.13892465,112120.0,112110.0,0.21856]
[1757333033577,0.82942113,112120.0,112110.0,0.21856]
[1757333034323,0.85076615,112120.0,112110.0,0.21856]
[1757333034628,0.82942113,112120.0,112110.0,0.21856]
[1757333046731,0.21041409,112120.0,112110.0,0.21856]
[1757333046938,0.82417113,112120.0,112110.0,0.31570599]
[1757333048630,0.82622113,112120.0,112110.0,0.31570599]
[1757333050642,0.82622113,112120.0,112110.0,0.31261599]
[1757333051379,0.82922113,112120.0,112110.0,0.31261599]
[1757333052217,0.82922113,112120.0,112110.0,0.31047599]
[1757333054655,0.21021409,112120.0,112110.0,0.31047599]
[1757333054839,0.82922113,112120.0,112110.0,0.31047599]
[1757333055823,0.82922113,112120.0,112110.0,0.31261599]
[1757333056404,0.82922113,112120.0,112110.0,0.37659325]
[1757333057216,0.82622113,112120.0,112110.0,0.37659325]
[1757333057421,0.82622113,112120.0,112110.0,0.37968325]
[1757333058935,0.82622113,112120.0,112110.0,0.37659325]
[1757333061689,0.82928113,112120.0,112110.0,0.37659325]
[1757333062558,0.51987323,112120.0,112110.0,0.37659325]
[1757333062842,0.21027409,112120.0,112110.0,0.37659325]
[1757333063049,0.51987323,112120.0,112110.0,0.37659325]
[1757333063269,0.21027409,112120.0,112110.0,0.37659325]
[1757333063478,0.51987323,112120.0,112110.0,0.37659325]
[1757333065771,0.20721409,112120.0,112110.0,0.37659325]
[1757333065918,0.51681323,112120.0,112110.0,0.37956325]
[1757333066126,0.51681323,112120.0,112110.0,0.37659325]
[1757333066662,0.51987323,112120.0,112110.0,0.37659325]
[1757333067629,0.51987323,112120.0,112110.0,0.37445325]
[1757333069051,0.51987323,112120.0,112110.0,0.31047599]
[1757333084464,0.51476323,112120.0,112110.0,0.37942325]
[1757333086802,0.51690323,112120.0,112110.0,0.37942325]
[1757333087009,0.51690323,112120.0,112110.0,0.37645325]
[1757333092377,0.51985323,112120.0,112110.0,0.37645325]
[1757333093031,0.51690323,112120.0,112110.0,0.37645325]
[1757333094917,0.51690323,112120.0,112110.0,0.37939325]
[1757333098213,0.20516409,112120.0,112110.0,0.37939325]
[1757333098419,0.1783803,112120.0,112110.0,0.37939325]
[1757333098595,0.1783803,112120.0,112110.0,0.39552004]
[1757333098800,0.1783803,112120.0,112110.0,0.82229955]
[1757333100956,0.1783803,112120.0,112110.0,0.82225955]
[1757333101598,0.1783803,112120.0,112110.0,0.7421555]
[1757333101796,0.1783803,112120.0,112110.0,0.5931555]
[1757333102046,0.1783803,112120.0,112110.0,0.7421555]
[1757333103953,0.1783803,112120.0,112110.0,1.0053555]
[1757333104732,0.1783803,112120.0,112110.0,0.8563555]
[1757333104941,0.1783803,112120.0,112110.0,1.0053555]
[1757333105145,0.1783803,112120.0,112110.0,1.08545955]
[1757333106929,0.1783803,112120.0,112110.0,0.93645955]
[1757333107188,0.1783803,112120.0,112110.0,1.08545955]
[1757333108030,0.48797944,112120.0,112110.0,1.08545955]
[1757333108203,0.49305944,112120.0,112110.0,1.12847522]
[1757333108462,0.49305944,112120.0,112110.0,1.04637117]
[1757333108830,0.49305944,112120.0,112110.0,1.04833117]
[1757333109445,0.1783803,112120.0,112110.0,1.05127117]
[1757333109650,0.1783803,112120.0,112110.0,1.06735004]
[1757333110254,0.48797944,112120.0,112110.0,0.91839004]
[1757333110436,0.49010944,112120.0,112110.0,0.98430599]
[1757333111040,0.49010944,112120.0,112110.0,0.98724599]
[1757333111456,0.1805103,112120.0,112110.0,1.05126664]
[1757333112060,0.1805103,112120.0,112110.0,0.90230664]
[1757333112265,0.1805103,112120.0,112110.0,1.05126664]
[1757333115892,0.1834603,112120.0,112110.0,0.78512664]
[1757333119093,0.1834603,112120.0,112110.0,0.38512664]
[1757333119541,0.1834603,112120.0,112110.0,0.78512664]
[1757333119993,0.1834603,112120.0,112110.0,0.78316664]
[1757333120448,0.49305944,112120.0,112110.0,0.38316664]
[1757333120663,0.49305944,112120.0,112110.0,0.31914599]
[1757333121119,0.49305944,112120.0,112110.0,0.31039599]
[1757333121741,0.49305944,112120.0,112110.0,0.16143599]
[1757333121959,0.49305944,112120.0,112110.0,0.31039599]
[1757333122181,0.51984443,112120.0,112110.0,0.31039599]
[1757333124416,0.84855926,112120.0,112110.0,0.31039599]
[1757333134196,0.21024529,112120.0,112110.0,0.31039599]
[1757333134345,0.82953759,112120.0,112110.0,0.31039599]
[1757333138770,0.82953759,112120.0,112110.0,0.21848]
[1757333150183,0.21024529,112120.0,112110.0,0.21848]
[1757333150399,0.82953759,112120.0,112110.0,0.21848]
[1757333155152,0.82953759,112120.0,112100.0,0.46406698]
[1757333155352,0.80341595,112110.0,112100.0,1e-08]
[1757333155579,0.80062851,112110.0,112100.0,0.06852001]
[1757333155698,0.80062851,112110.0,112090.0,0.06852]
[1757333155699,0.17841213,112100.0,112090.0,0.06852]
[1757333155901,0.80557211,112100.0,112090.0,0.21748637]
[1757333156126,0.80278443,112100.0,112090.0,0.21748637]
[1757333156342,0.82957542,112100.0,112090.0,0.21748637]
[1757333157207,0.82957542,112100.0,112090.0,0.21948637]
[1757333158554,0.82957542,112100.0,112090.0,0.22048637]
[1757333163469,0.82957542,112100.0,112090.0,0.21848637]
[1757333163673,0.82957542,112100.0,112090.0,0.21748637]
[1757333173246,0.21028312,112100.0,112090.0,0.21748637]
[1757333173453,0.82957542,112100.0,112090.0,0.21748637]
[1757333175896,0.82663542,112100.0,112090.0,0.21748637]
[1757333176125,0.82663542,112100.0,112090.0,0.21956637]
[1757333176308,0.82957542,112100.0,112090.0,0.21748637]
[1757333180882,0.82957542,112100.0,112090.0,0.21744637]
[1757333185205,0.21028312,112100.0,112090.0,0.21744637]
[1757333185403,0.82957542,112100.0,112090.0,0.21744637]
[1757333186451,0.52003431,112100.0,112090.0,0.21744637]
[1757333186986,0.52003431,112100.0,112090.0,0.06856637]
[1757333187217,0.52003431,112100.0,112090.0,0.21744637]
[1757333194702,0.52003431,112100.0,112090.0,0.06856637]
[1757333194898,0.52003431,112100.0,112090.0,0.21744637]
[1757333196087,0.8297855,112100.0,112080.0,0.06402065]
[1757333196304,0.80381835,112090.0,112080.0,0.09196237]
[1757333196528,0.17845989,112070.0,112060.0,0.53274065]
[1757333196738,0.49301951,112070.0,112060.0,0.61892651]
[1757333196983,0.49333108,112070.0,112060.0,0.62096651]
[1757333197191,0.49023108,112070.0,112060.0,0.62096651]
[1757333198044,0.49023108,112070.0,112060.0,0.62410651]
[1757333198268,0.48821108,112070.0,112060.0,0.62410651]
[1757333198478,0.48821108,112070.0,112060.0,0.62510651]
[1757333199108,0.48821108,112070.0,112060.0,0.62610651]
[1757333200679,0.48821108,112070.0,112060.0,1.02610651]
[1757333203488,0.48821108,112070.0,112060.0,1.1180225]
[1757333205436,0.48821108,112070.0,112060.0,0.7180225]
[1757333205867,0.49023108,112070.0,112060.0,0.7180225]
[1757333206286,0.48821108,112070.0,112060.0,0.7180225]
[1757333206491,0.48821108,112070.0,112060.0,0.78204315]
[1757333207753,0.49023108,112070.0,112060.0,0.78204315]
[1757333209457,0.49023108,112070.0,112060.0,1.18204315]
[1757333209717,0.49333108,112070.0,112060.0,1.17890315]
[1757333210107,0.49023108,112070.0,112060.0,1.17890315]
[1757333210739,0.49023108,112070.0,112060.0,1.18184315]
[1757333210952,0.48821108,112070.0,112060.0,1.18184315]
[1757333212288,0.49023108,112070.0,112060.0,0.77890315]
[1757333212677,0.49321108,112070.0,112060.0,0.77890315]
[1757333214727,0.49321108,112070.0,112060.0,0.5626825]
[1757333214938,0.49321108,112070.0,112060.0,0.3124825]
[1757333216191,0.49321108,112070.0,112060.0,0.22056651]
[1757333216915,0.18345989,112070.0,112060.0,0.22056651]
[1757333217093,0.52000872,112070.0,112060.0,0.22056651]
[1757333217862,0.21025753,112070.0,112060.0,0.07076651]
[1757333218078,0.52000872,112070.0,112060.0,0.22060651]
[1757333218958,0.52000872,112070.0,112060.0,0.21960651]
[1757333219139,0.52100872,112070.0,112060.0,0.21960651]
[1757333219580,0.17847581,112060.0,112050.0,0.0002]
[1757333219783,0.49101568,112060.0,112050.0,0.15004651]
[1757333219960,0.488227,112060.0,112050.0,0.15004651]
[1757333220167,0.493227,112060.0,112050.0,0.15004651]
[1757333220369,0.52002821,112060.0,112050.0,0.15004651]
[1757333234212,0.8297794,112060.0,112050.0,0.15004651]
[1757333234428,0.52002821,112060.0,112050.0,0.15004651]
[1757333239566,0.17849174,112050.0,112040.0,0.06856]
[1757333239705,0.49103186,112050.0,112040.0,0.31052253]
[1757333239913,0.49324293,112050.0,112040.0,0.16052253]
[1757333240120,0.49324293,112050.0,112040.0,0.31052253]
[1757333240753,0.52004469,112050.0,112040.0,0.31052253]
[1757333240956,0.2102935,112050.0,112040.0,0.31152253]
[1757333241188,0.2102935,112050.0,112040.0,0.31458253]
[1757333241403,0.51706469,112050.0,112040.0,0.31778253]
[1757333241596,0.51706469,112050.0,112040.0,0.31458253]
[1757333241808,0.52027469,112050.0,112040.0,0.31252253]
[1757333242010,0.52027469,112050.0,112040.0,0.31458253]
[1757333244249,0.52027469,112050.0,112040.0,0.31252253]
[1757333247722,0.52027469,112050.0,112040.0,0.22060654]
[1757333248337,0.53588305,112050.0,112040.0,0.22060654]
[1757333248537,0.53613056,112050.0,112040.0,0.22060654]
[1757333248754,0.5205222,112050.0,112040.0,0.22060654]
[1757333249638,0.5205222,112050.0,112040.0,0.28462719]
[1757333251909,0.8305209,112050.0,112040.0,0.28462719]
[1757333252657,0.8305209,112050.0,112040.0,0.13462719]
[1757333252860,0.8305209,112050.0,112040.0,0.28450719]
[1757333253057,0.8305209,112050.0,112040.0,0.22048654]
[1757333253262,0.8305209,112050.0,112040.0,0.22044654]
[1757333253467,0.8305209,112050.0,112040.0,0.15188654]
[1757333253669,0.8305209,112050.0,112040.0,0.00204654]
[1757333253878,0.8305209,112050.0,112040.0,0.15196654]
[1757333254502,0.8305209,112050.0,112040.0,0.15096654]
[1757333254701,0.8305209,112050.0,112040.0,0.14996654]
[1757333255130,0.8315209,112050.0,112040.0,0.14996654]
[1757333255330,0.8325209,112050.0,112040.0,0.14996654]
[1757333256442,0.2125235,112050.0,112040.0,0.14996654]
[1757333256645,0.8325209,112050.0,112040.0,4.654e-05]
[1757333256850,0.8325209,112050.0,112040.0,0.14996654]
[1757333259172,0.8325209,112050.0,112040.0,0.14992654]
[1757333264768,0.5172922,112050.0,112040.0,0.15518654]
[1757333265214,0.5193522,112050.0,112040.0,0.15518654]
[1757333265590,0.5193522,112050.0,112040.0,0.15198654]
[1757333265837,0.5225622,112050.0,112040.0,0.15198654]
[1757333266371,0.5193522,112050.0,112040.0,0.15198654]
[1757333266789,0.2072935,112050.0,112040.0,0.24710253]
[1757333266991,0.18049174,112050.0,112040.0,0.31112318]
[1757333267793,0.17949174,112050.0,112040.0,0.71112318]
[1757333268808,0.17849174,112050.0,112040.0,0.71112318]
[1757333270783,0.48849044,112050.0,112040.0,0.31112318]
[1757333271341,0.48849044,112050.0,112040.0,0.71112318]
[1757333272828,0.48849044,112050.0,112040.0,0.71088318]
[1757333273646,0.48849044,112050.0,112040.0,0.16124318]
[1757333274067,0.48849044,112050.0,112040.0,0.31088318]
[1757333275717,0.48849044,112050.0,112040.0,0.16124318]
[1757333275931,0.48849044,112050.0,112040.0,0.37940318]
[1757333276133,0.48849044,112050.0,112040.0,0.22980318]
[1757333276361,0.48849044,112050.0,112040.0,0.37940318]
[1757333277749,0.48849044,112050.0,112040.0,0.77940318]
[1757333280730,0.48849044,112050.0,112040.0,0.37940318]
[1757333281229,0.48849044,112050.0,112040.0,0.77940318]
[1757333283900,0.17849174,112050.0,112040.0,0.77940318]
[1757333284104,0.48849044,112050.0,112040.0,0.37940318]
[1757333284651,0.48849044,112050.0,112040.0,0.77940318]
[1757333287390,0.17849174,112050.0,112040.0,0.77940318]
[1757333287537,0.48849044,112050.0,112040.0,0.77940318]
[1757333287751,0.48849044,112050.0,112040.0,0.37940318]
[1757333288359,0.48849044,112050.0,112040.0,0.77940318]
[1757333288869,0.48849044,112050.0,112040.0,0.62980318]
[1757333289083,0.48849044,112050.0,112040.0,0.77928318]
[1757333291370,0.48849044,112050.0,112040.0,0.37928318]
[1757333291805,0.48849044,112050.0,112040.0,0.77928318]
[1757333294061,0.48849044,112050.0,112040.0,0.22454318]
[1757333294062,0.80379914,112050.0,112040.0,0.22454318]
[1757333294295,0.80379914,112050.0,112040.0,0.37394318]
[1757333294493,0.83060068,112050.0,112040.0,0.37394318]
[1757333294654,0.83060068,112050.0,112040.0,0.37589318]
[1757333295516,0.83160068,112050.0,112040.0,0.37589318]
[1757333295692,0.83260068,112050.0,112040.0,0.37589318]
[1757333296770,0.82938068,112050.0,112040.0,0.37589318]
[1757333296986,0.20729328,112050.0,112040.0,0.37902318]
[1757333297195,0.51729198,112050.0,112040.0,0.37902318]
[1757333298017,0.51729198,112050.0,112040.0,0.77902318]
[1757333299466,0.51938198,112050.0,112040.0,0.77902318]
[1757333301346,0.51938198,112050.0,112040.0,0.37902318]
[1757333301844,0.51938198,112050.0,112040.0,0.77902318]
[1757333303750,0.83235068,112050.0,112040.0,0.68202719]
[1757333303958,0.83235068,112050.0,112040.0,0.28202719]
[1757333305418,0.83235068,112050.0,112040.0,0.13262719]
[1757333305647,0.83235068,112050.0,112040.0,0.28198719]
[1757333306273,0.83235068,112050.0,112040.0,0.21796654]
[1757333308298,0.21235328,112050.0,112040.0,0.21796654]
[1757333308528,0.8324056,112050.0,112040.0,0.21796654]
[1757333311389,0.8324056,112050.0,112030.0,0.07297065]
[1757333311390,0.17850767,112040.0,112030.0,0.07297065]
[1757333311642,0.49339301,112040.0,112030.0,0.25064916]
[1757333311841,0.49357383,112040.0,112030.0,0.25064916]
[1757333311982,0.52037748,112040.0,112030.0,0.25279916]
[1757333313389,0.52037748,112040.0,112030.0,0.25064916]
[1757333314219,0.52037748,112040.0,112030.0,0.10132916]
[1757333314424,0.52037748,112040.0,112030.0,0.25060916]
[1757333316966,0.53422053,112040.0,112030.0,0.25060916]
[1757333317160,0.22419437,112040.0,112030.0,0.25060916]
[1757333317370,0.53422053,112040.0,112030.0,0.25060916]
[1757333320307,0.53422053,112040.0,112030.0,0.15869317]
[1757333320672,0.53422053,112040.0,112030.0,0.14994317]
[1757333325779,0.52037748,112040.0,112030.0,0.14994317]
[1757333326190,0.53426259,112040.0,112030.0,0.14994317]
[1757333326410,0.52037748,112040.0,112030.0,0.14994317]
[1757333333228,0.21035132,112040.0,112030.0,0.14994317]
[1757333333439,0.52037748,112040.0,112030.0,0.15191317]
[1757333333855,0.51533748,112040.0,112030.0,0.15509317]
[1757333334267,0.51735748,112040.0,112030.0,0.15509317]
[1757333334475,0.51735748,112040.0,112030.0,0.15191317]
[1757333334683,0.52042748,112040.0,112030.0,0.15191317]
[1757333335667,0.20531132,112040.0,112030.0,0.24700916]
[1757333336011,0.17850767,112040.0,112030.0,0.31102981]
[1757333336216,0.17850767,112040.0,112030.0,0.27381046]
[1757333336394,0.17850767,112040.0,112030.0,0.35391451]
[1757333337335,0.17850767,112040.0,112030.0,0.37806451]
[1757333337542,0.17850767,112040.0,112030.0,0.37906451]
[1757333338430,0.17850767,112040.0,112030.0,0.55758811]
[1757333338645,0.17849174,112050.0,112030.0,1.24172693]
[1757333338866,0.17849174,112050.0,112040.0,0.38660771]
[1757333339313,0.17849174,112050.0,112040.0,0.41537322]
[1757333341692,0.18793449,112060.0,112040.0,0.41537322]
[1757333342005,0.17849174,112050.0,112040.0,0.41219322]
[1757333342210,0.17849174,112050.0,112040.0,1.00615771]
[1757333342544,0.17849174,112050.0,112040.0,0.68163004]
[1757333342754,0.17849174,112050.0,112040.0,0.85762418]
[1757333343178,0.17849174,112050.0,112040.0,0.85462418]
[1757333343386,0.17849174,112050.0,112040.0,1.03313185]
[1757333343561,0.17849174,112050.0,112040.0,1.03513185]
[1757333343756,0.17849174,112050.0,112040.0,1.02638185]
[1757333344071,0.17849174,112050.0,112040.0,1.02538185]
[1757333344281,0.17849174,112050.0,112040.0,1.29058185]
[1757333344480,0.17849174,112050.0,112040.0,1.11207418]
[1757333345068,0.17849174,112050.0,112040.0,1.29058185]
[1757333346382,0.17849174,112050.0,112040.0,1.2104778]
[1757333347667,0.17849174,112050.0,112040.0,1.0612778]
[1757333347887,0.17849174,112050.0,112040.0,1.2104778]
[1757333348143,0.17849174,112050.0,112040.0,1.29058185]
[1757333348512,0.17849174,112050.0,112040.0,1.2104778]
[1757333348715,0.18793449,112060.0,112040.0,1.2104778]
[1757333349072,0.17849174,112050.0,112040.0,0.9528478]
[1757333349212,0.18793449,112060.0,112040.0,0.9528478]
[1757333349430,0.18793449,112060.0,112050.0,0.06702507]
[1757333349631,0.18793449,112060.0,112050.0,0.18770521]
[1757333350092,0.18793449,112060.0,112050.0,0.58770521]
[1757333350686,0.00053489,112060.0,112050.0,1.15128577]
[1757333350844,0.00053489,112060.0,112050.0,1.0884407]
[1757333351043,0.00053489,112060.0,112050.0,1.14613393]
[1757333351488,0.1790107,112060.0,112050.0,1.14613393]
[1757333351686,0.00053489,112060.0,112050.0,1.14613393]
[1757333352462,0.00053489,112060.0,112050.0,1.14713393]
[1757333352689,0.00053489,112060.0,112050.0,1.14613393]
[1757333352851,0.00053489,112060.0,112050.0,1.36041393]
[1757333353061,0.00053489,112060.0,112050.0,1.36377393]
[1757333353276,0.00053489,112060.0,112050.0,1.51365393]
[1757333354273,0.00053489,112060.0,112050.0,1.51265393]
[1757333354790,0.00053489,112060.0,112050.0,1.51465393]
[1757333356488,0.00053489,112060.0,112050.0,1.36477393]
[1757333356897,0.00053489,112060.0,112050.0,1.51457393]
[1757333358000,0.00053489,112060.0,112050.0,1.51453393]
[1757333358654,0.00053489,112060.0,112050.0,1.36477393]
[1757333358829,0.1790107,112060.0,112050.0,1.51453393]
[1757333359051,0.00053489,112060.0,112050.0,1.51453393]
[1757333360966,0.00053489,112060.0,112050.0,1.45072669]
[1757333361387,0.00053489,112060.0,112050.0,1.53083074]
[1757333362427,0.00053489,112060.0,112050.0,1.38107074]
[1757333362630,0.00053489,112060.0,112050.0,1.53079074]
[1757333365079,0.1790107,112060.0,112050.0,1.53075074]
[1757333365278,0.1790107,112060.0,112050.0,1.38107074]
[1757333365490,0.1790107,112060.0,112050.0,1.53075074]
[1757333368972,0.1790107,112060.0,112050.0,1.18164018]
[1757333369149,0.1790107,112060.0,112050.0,1.33132018]
[1757333369766,0.1790107,112060.0,112050.0,1.18164018]
[1757333370007,0.1790107,112060.0,112050.0,1.33132018]
[1757333373045,0.1790107,112060.0,112050.0,1.33128018]
[1757333375521,0.1790107,112060.0,112050.0,1.50977192]
[1757333376021,0.1790107,112060.0,112050.0,1.33128018]
[1757333376651,0.1790107,112060.0,112050.0,1.50977192]
[1757333377130,0.1790107,112060.0,112050.0,1.33128018]
[1757333377634,0.17841856,112060.0,112050.0,1.33128018]
[1757333379411,0.05788718,112060.0,112050.0,1.42966787]
[1757333382972,0.05788718,112060.0,112050.0,1.50977847]
[1757333384796,0.17846012,112070.0,112060.0,0.34]
[1757333385001,0.17846012,112070.0,112060.0,0.64904745]
[1757333385404,0.17846012,112070.0,112060.0,1.04904745]
[1757333385588,0.17846012,112070.0,112060.0,1.07583918]
[1757333387046,0.17846012,112070.0,112060.0,1.116209]
[1757333387252,0.17846012,112070.0,112060.0,1.05209754]
[1757333387482,0.17846012,112070.0,112060.0,1.05309754]
[1757333388161,0.17846012,112070.0,112060.0,1.05409754]
[1757333389535,0.17846012,112070.0,112060.0,1.13420814]
[1757333391468,0.17846012,112070.0,112060.0,1.05409754]
[1757333391676,0.16774665,112070.0,112060.0,1.13424307]
[1757333392615,0.47752923,112070.0,112060.0,1.20276307]
[1757333392978,0.47752923,112070.0,112060.0,1.20140307]
[1757333394954,0.47752923,112070.0,112060.0,1.20276307]
[1757333399364,0.47752923,112070.0,112060.0,1.22063307]
[1757333399510,0.47752923,112070.0,112060.0,1.20276307]
[1757333399931,0.47752923,112070.0,112060.0,1.20140307]
[1757333400669,0.47752923,112070.0,112060.0,1.12125754]
[1757333400874,0.47752923,112070.0,112060.0,1.12261754]
[1757333401293,0.47752923,112070.0,112060.0,1.12125754]
[1757333401506,0.47752923,112070.0,112060.0,1.20141673]
[1757333401642,0.35699977,112070.0,112060.0,1.20141673]
[1757333401855,0.35699977,112070.0,112060.0,1.12125754]
[1757333402247,0.35699977,112070.0,112060.0,1.12105754]
[1757333406201,0.35699977,112070.0,112060.0,1.12241754]
[1757333407677,0.04721719,112070.0,112060.0,1.12241754]
[1757333409554,0.04721719,112070.0,112060.0,1.38561754]
[1757333411020,0.35699977,112070.0,112060.0,1.38425754]
[1757333411870,0.35699977,112070.0,112060.0,1.46441673]
[1757333412083,0.35699977,112070.0,112060.0,1.47316673]
[1757333412706,0.35699662,112070.0,112060.0,1.47316673]
[1757333414512,0.04721719,112070.0,112060.0,1.47316673]
[1757333414715,0.35699662,112070.0,112060.0,1.47316673]
[1757333416713,0.04721719,112070.0,112060.0,1.47316673]
[1757333416900,0.35699662,112070.0,112060.0,1.47316673]
[1757333425476,0.35699662,112070.0,112060.0,1.46441673]
[1757333429433,0.04721719,112070.0,112060.0,1.46441673]
[1757333429660,0.35699662,112070.0,112060.0,1.46441673]
[1757333430415,0.3569953,112070.0,112060.0,1.47316673]
[1757333430625,0.35694176,112070.0,112060.0,1.47316673]
[1757333431647,0.04716365,112070.0,112060.0,1.47316673]
[1757333431879,0.35694176,112070.0,112060.0,1.47316673]
[1757333435350,0.04716365,112070.0,112060.0,1.47316673]
[1757333447851,0.05039365,112070.0,112060.0,1.47316673]
[1757333448085,0.34945794,112070.0,112060.0,1.47316673]
[1757333448294,0.34622794,112070.0,112060.0,1.47316673]
[1757333449708,0.35154794,112070.0,112060.0,0.94133691]
[1757333449939,0.04176983,112070.0,112060.0,0.66374518]
[1757333450177,0.35433637,112070.0,112060.0,0.58358599]
[1757333450330,0.35154794,112070.0,112060.0,0.58358599]
[1757333451158,0.17850767,112040.0,112020.0,0.1606039]
[1757333451364,0.17850767,112040.0,112010.0,0.0002]
[1757333451365,0.17853954,112020.0,112010.0,0.0002]
[1757333451576,0.17853954,112020.0,112000.0,0.0052]
[1757333451577,0.17855548,112010.0,112000.0,0.0052]
[1757333451817,0.80581162,112010.0,112000.0,0.0052]
[1757333452025,0.49324359,112010.0,112000.0,0.0052]
[1757333452206,0.52005572,112010.0,112000.0,0.0052]
[1757333452678,0.52005572,112010.0,112000.0,0.09711599]
[1757333452870,0.52051886,112010.0,112000.0,0.09711599]
[1757333453228,0.52151886,112010.0,112000.0,0.09711599]
[1757333454210,0.21174075,112010.0,112000.0,0.09711599]
[1757333454571,0.52151886,112010.0,112000.0,0.09711599]
[1757333455074,0.52251886,112010.0,112000.0,0.09711599]
[1757333457813,0.52251886,112010.0,112000.0,0.0052]
[1757333458971,0.21274075,112010.0,112000.0,0.0052]
[1757333459222,0.52251886,112010.0,112000.0,0.0052]
[1757333460865,0.20783075,112010.0,112000.0,0.09915599]
[1757333461884,0.18101862,112010.0,112000.0,0.09915599]
[1757333462091,0.49570673,112010.0,112000.0,0.09711599]
[1757333478496,0.18592862,112010.0,112000.0,0.09711599]
[1757333478751,0.49570673,112010.0,112000.0,0.09711599]
[1757333478929,0.49079673,112010.0,112000.0,0.09915599]
[1757333479131,0.49079673,112010.0,112000.0,0.4102941]
[1757333479132,0.18101862,112010.0,112000.0,0.4102941]
[1757333479689,0.18101862,112010.0,112000.0,0.8102941]
[1757333480076,0.18101862,112010.0,112000.0,0.49915599]
[1757333480445,0.18001862,112010.0,112000.0,0.49915599]
[1757333480609,0.18001862,112010.0,112000.0,0.8089341]
[1757333480817,0.18001862,112010.0,112000.0,1.0721341]
[1757333481539,0.17901862,112010.0,112000.0,1.0721341]
[1757333481961,0.17901862,112010.0,112000.0,1.0731341]
[1757333484573,0.17901862,112010.0,112000.0,1.0744941]
[1757333485797,0.17901862,112010.0,112000.0,1.25306552]
[1757333486012,0.17901862,112010.0,112000.0,1.0744941]
[1757333486847,0.17901862,112010.0,112000.0,1.2237341]
[1757333487389,0.17901862,112010.0,112000.0,0.91395599]
[1757333487606,0.17901862,112010.0,112000.0,1.2237341]
[1757333488645,0.17901862,112010.0,112000.0,0.76471599]
[1757333488859,0.17901862,112010.0,112000.0,1.2237341]
[1757333489744,0.17901862,112010.0,112000.0,1.40230552]
[1757333490414,0.18744978,112030.0,112010.0,0.17854445]
[1757333490622,0.1785236,112030.0,112020.0,1.45997335]
[1757333490826,0.1785236,112030.0,112020.0,1.52409231]
[1757333491454,0.1785236,112030.0,112020.0,1.52404277]
[1757333491887,0.1795236,112030.0,112020.0,1.52404277]
[1757333492095,0.1805236,112030.0,112020.0,1.52404277]
[1757333492304,0.1805236,112030.0,112020.0,1.92404277]
[1757333492508,0.1795236,112030.0,112020.0,1.91554277]
[1757333494513,0.1805236,112030.0,112020.0,1.91554277]
[1757333495572,0.1805236,112030.0,112020.0,2.00020323]
[1757333496290,0.1805236,112030.0,112020.0,1.85096323]
[1757333496485,0.1805236,112030.0,112020.0,2.00016323]
[1757333497402,0.1805236,112030.0,112020.0,2.00866323]
[1757333497751,0.1805236,112030.0,112020.0,2.00016323]
[1757333499039,0.1805236,112030.0,112020.0,2.17870277]
[1757333499241,0.1805236,112030.0,112020.0,2.00016323]
[1757333499455,0.1805236,112030.0,112020.0,2.17870277]
[1757333499691,0.1805236,112030.0,112020.0,2.02950277]
[1757333499894,0.1805236,112030.0,112020.0,2.17870277]
[1757333500099,0.002,112030.0,112020.0,2.17870277]
[1757333500772,0.1805236,112030.0,112020.0,2.17870277]
[1757333501206,0.002,112030.0,112020.0,2.5412155]
[1757333501411,0.001,112030.0,112020.0,2.67714608]
[1757333501617,0.17850767,112040.0,112030.0,0.51851237]
[1757333501820,0.17850767,112040.0,112030.0,1.70993651]
[1757333502282,0.17850767,112040.0,112030.0,2.10993651]
[1757333502508,0.17850767,112040.0,112030.0,1.96073651]
[1757333502737,0.17850767,112040.0,112030.0,2.10993651]
[1757333503637,0.18746244,112050.0,112030.0,2.10993651]
[1757333503791,0.18746244,112050.0,112040.0,0.86092381]
[1757333504001,0.18746244,112050.0,112040.0,0.86228381]
[1757333504200,0.18746244,112050.0,112040.0,0.92822414]
[1757333504406,0.18746244,112050.0,112040.0,1.32822414]
[1757333506322,0.18846244,112050.0,112040.0,1.32822414]
[1757333507481,0.18846244,112050.0,112040.0,1.59142414]
[1757333508452,0.18846244,112050.0,112040.0,1.44222414]
[1757333508632,0.18846244,112050.0,112040.0,1.59138414]
[1757333509022,0.18846244,112050.0,112040.0,1.76989181]
[1757333509226,0.18846244,112050.0,112040.0,1.59138414]
[1757333511418,0.18846244,112050.0,112040.0,1.76989181]
[1757333511552,0.18846244,112050.0,112040.0,1.59138414]
[1757333512183,0.18846244,112050.0,112040.0,1.44222414]
[1757333512383,0.18846244,112050.0,112040.0,1.59138414]
[1757333516412,0.18846244,112050.0,112040.0,0.82105632]
[1757333516663,0.19370244,112050.0,112040.0,1.28661023]
[1757333516863,0.19370244,112050.0,112040.0,1.28857023]
[1757333517794,0.19370244,112050.0,112040.0,0.82754632]
[1757333518041,0.19370244,112050.0,112040.0,1.28661023]
[1757333518240,0.50360635,112050.0,112040.0,0.57670632]
[1757333518674,0.50360635,112050.0,112040.0,0.51277599]
[1757333519084,0.19370244,112050.0,112040.0,0.51277599]
[1757333519288,0.19370244,112050.0,112040.0,0.24957599]
[1757333519495,0.19370244,112050.0,112040.0,0.31350632]
[1757333520683,0.50360635,112050.0,112040.0,0.31350632]
[1757333521517,0.50360635,112050.0,112040.0,0.24957599]
[1757333524333,0.50360635,112050.0,112040.0,0.15762]
[1757333525717,0.19370244,112050.0,112040.0,0.15762]
[1757333525919,0.50360635,112050.0,112040.0,0.15762]
[1757333527973,0.19370244,112050.0,112040.0,0.15762]
[1757333528165,0.50360635,112050.0,112040.0,0.15762]
[1757333529887,0.53040737,112050.0,112040.0,0.15762]
[1757333532772,0.53040737,112050.0,112040.0,0.14912]
[1757333534804,0.53040737,112050.0,112030.0,0.06393033]
[1757333534805,0.17850767,112040.0,112030.0,0.06393033]
[1757333535049,0.49429076,112040.0,112030.0,0.21305033]
[1757333535317,0.49365158,112040.0,112030.0,0.21305033]
[1757333536228,0.49365158,112040.0,112030.0,0.30596632]
[1757333546767,0.49365158,112040.0,112030.0,0.70596632]
[1757333548536,0.49365158,112040.0,112030.0,0.30596632]
[1757333548949,0.18374767,112040.0,112030.0,0.30596632]
[1757333549160,0.49365158,112040.0,112030.0,0.30596632]
[1757333549550,0.49365158,112040.0,112030.0,0.24203599]
[1757333550414,0.4937366,112040.0,112030.0,0.24203599]
[1757333552497,0.4937366,112040.0,112030.0,0.32198832]
[1757333555389,0.4937366,112040.0,112030.0,0.24203599]
[1757333558206,0.18374767,112040.0,112030.0,0.24415599]
[1757333560305,0.18374767,112040.0,112030.0,0.32410832]
[1757333563263,0.18374767,112040.0,112030.0,0.32198832]
[1757333563716,0.4937366,112040.0,112030.0,0.17286832]
[1757333563940,0.4937366,112040.0,112030.0,0.24199599]
[1757333566802,0.4937366,112040.0,112030.0,0.09291599]
[1757333567010,0.4937366,112040.0,112030.0,0.15008]
[1757333567216,0.4937366,112040.0,112030.0,0.21424002]
[1757333568658,0.4947366,112040.0,112030.0,0.21324002]